Cogmind - Beta 13 X1 @@@ ROGUE MODE // 2023.06.29 @ 23:56:24 Player: Torako Result: Destroyed by J6-7KQ(R) with Subdweller Laser Performance ------------- Evolutions (0) 0 Regions Visited (3) 600 Robots Destroyed (26) 130 Value Destroyed (801) 801 Prototype IDs (11) 220 Alien Tech Used (0) 0 Bonus (0) 0 TOTAL SCORE: 1751 Bonus ------- None Cogmind --------- Core Integrity 0/250 Matter 184/300 Energy 180/180 System Corruption 0% Temperature Cool (6) Movement Treading (340) Ox2 Location -10/Subcaves Parts ------- > --- POWER (1) -------- Meta Core > --- PROPULSION (2+1) - Light Treads (+) Spiked Treads Wheel > --- UTILITY (2+1) ---- Huge Storage Unit (+) Signal Interpreter Light Armor Plating > --- WEAPON (2+1) ----- Heavy Battle Rifle (+) Heavy Battle Rifle Battle Cannon > --- INVENTORY (25) --- Improved Ion Engine Combat Airjet Disposable Heat Sink Disposable Heat Sink High-capacity Battery (250) Large Matter Pod (150) Experimental Sensor Array Light Armor Plating Light Armor Plating Makeshift Armor Plating Makeshift Armor Plating Beam Cannon Subdweller Beam Cannon Improved Light Cannon Battle Cannon Battle Cannon Grenade Launcher Subdweller Shrapnel Launcher Multitool Makeshift Hammer Proton Bomb Trap Shrapnel Trap Piercing Trap Peak State ------------ > --- POWER ------------ Meta Core > --- PROPULSION ------- Light Treads Spiked Treads Wheel > --- UTILITY ---------- Huge Storage Unit Experimental Sensor Array Makeshift Armor Plating > --- WEAPON ----------- Heavy Battle Rifle Heavy Battle Rifle Battle Cannon > --- INVENTORY -------- Improved Ion Engine Combat Airjet Disposable Heat Sink Disposable Heat Sink High-capacity Battery Large Matter Pod Signal Interpreter Light Armor Plating Light Armor Plating Light Armor Plating Makeshift Armor Plating Beam Cannon Subdweller Beam Cannon Improved Light Cannon Battle Cannon Grenade Launcher Subdweller Shrapnel Launcher Multitool Makeshift Hammer Proton Bomb Trap Shrapnel Trap Piercing Trap [Rating: 45] Favorites ----------- Power Ion Engine Engine Ion Engine Power Core Meta Core Propulsion Wheel Treads Light Treads Wheel Wheel Utility Huge Storage Unit Device Seismic Detector Storage Huge Storage Unit Processor Targeting Computer Protection Light Armor Plating Weapon Improved Light Cannon Energy Gun Subdweller Laser Energy Cannon Beam Cannon Ballistic Gun Heavy Battle Rifle Ballistic Cannon Improved Light Cannon Launcher Subdweller Shrapnel Launcher Impact Weapon Makeshift Hammer Build | -11 -10 -10 -10 ------- Run | Jun Mat Min Sub Slots Evolved . | . . . . Power . | . . . . Propulsion . | . . . . Utility . | . . . . Weapon . | . . . . Parts Attached 39 | 7 2 6 24 Power 4 | 1 . 1 2 Engine 3 | 1 . 1 1 Core 1 | . . . 1 Reactor . | . . . . Propulsion 7 | 2 . 1 4 Treads 5 | 2 . . 3 Leg . | . . . . Wheel 2 | . . 1 1 Hover . | . . . . Flight . | . . . . Utility 13 | 2 . 4 7 Device 4 | 1 . 2 1 Storage 2 | 1 . 1 . Processor 2 | . . 1 1 Hackware . | . . . . Protection 5 | . . . 5 Artifact . | . . . . Weapon 15 | 2 2 . 11 Energy Gun 2 | . . . 2 Energy Cannon 1 | . . . 1 Ballistic Gun 5 | 2 . . 3 Ballistic Cannon 5 | . 2 . 3 Launcher 1 | . . . 1 Special Weapon . | . . . . Impact Weapon 1 | . . . 1 Slashing Weapon . | . . . . Piercing Weapon . | . . . . Special Melee Weapon . | . . . . Unidentified Prototypes 1 | . . 1 . Parts Lost 4 | . . 1 3 Power 1 | . . . 1 Propulsion 2 | . . 1 1 Utility . | . . . . Weapon 1 | . . . 1 Highest Loss Streak 1 | . . 1 1 To Critical Strikes 1 | . . . 1 Average Slot Usage (%) 99 | . 100 99 99 Engine 12 | . 14 14 12 Treads 16 | . 28 22 14 Wheel 11 | . . 5 13 Device 2 | . 14 9 . Storage 13 | . 14 14 13 Processor 6 | . . 4 6 Protection 5 | . . . 7 Energy Cannon 1 | . . . 2 Ballistic Gun 4 | . 12 . 5 Ballistic Cannon 19 | . 15 28 17 Naked Turns . | . . . . Heaviest Build 103 | 15 19 94 103 Greatest Support 40 | 40 40 40 10 Greatest Overweight (x) 10 | . . 9 10 Average Overweight (x) 7 | . . 3 9 Largest Inventory Capacity 25 | 8 8 25 25 Average Capacity 22 | 7 8 18 25 Most Carried 25 | 7 8 25 25 Average Carried 21 | 5 7 14 24 Final Capacity 25 | 8 8 25 25 Final Carried 25 | 7 8 25 23 Class Distribution -------------------- 52% | Mutant 40% | Derelict-Mutant 7% | Derelict-Tank Dominant Class ---------------- Mutant | -10/Materials Mutant | -10/Mines Derelict-Mutant | -10/Subcaves Resources | -11 -10 -10 -10 ----------- Run | Jun Mat Min Sub Matter Collected 1590 | 354 24 361 851 Remotely . | . . . . Salvage Created 683 | 106 22 126 429 Parts 43 | 10 3 9 21 Haulers Intercepted . | . . . . Recyclers Shooed 1 | . . 1 . Parts Field Recycled . | . . . . Retrieved Matter . | . . . . Parts Self-Destructed 10 | . . . 10 Prevented . | . . . . Kills | -11 -10 -10 -10 ------- Run | Jun Mat Min Sub Combat Hostiles Destroyed 21 | . . 6 15 Cannons 16 | . . 6 10 AOE 5 | . . . 5 Classes Destroyed 9 | 3 1 3 2 Worker 1 | 1 . . . Tunneler 1 | 1 . . . Recycler 2 | 1 . 1 . Watcher 1 | . 1 . . Swarmer 3 | . . 3 . Grunt 4 | . . 2 2 Demolisher 1 | . . 1 . Artisan 1 | . . . 1 Subdweller 13 | . . . 13 Best Kill Streak 5 | 1 1 3 5 Combat Bots Only 5 | . . 3 5 Max Kills in Single Turn 2 | 1 1 1 2 Gunslinging . | . . . . Exploded 2 | . . . 2 Melee . | . . . . Uniques/NPCs Destroyed . | . . . . Combat | -11 -10 -10 -10 -------- Run | Jun Mat Min Sub Damage Taken 1347 | . . 541 806 Core 251 | . . 22 229 Absorbed by Shields . | . . . . Core Remaining (%) 100 | 100 . . . Volleys Fired 163 | 14 2 18 129 Largest 3 | 2 2 2 3 Hottest 105 | 40 78 78 105 Shots Fired 269 | 28 4 36 201 Gun 67 | 28 . . 39 Cannon 197 | . 4 36 157 Launcher 5 | . . . 5 Special . | . . . . Kinetic 224 | 28 4 36 156 Thermal 45 | . . . 45 Explosive . | . . . . Electromagnetic . | . . . . Robot Hit Streak 22 | 3 2 8 22 Robot Miss Streak 4 | 4 1 3 2 Penetration Max . | . . . . Secondary Targets . | . . . . Shots Hit Robots 119 | 15 2 24 78 Core Hits 42 | 4 1 11 26 Critical Kills . | . . . . Critical Parts Destroyed 1 | 1 . . . Critical Strikes 7 | 1 . . 6 Destroy 1 | 1 . . . Blast 6 | . . . 6 Melee Attacks 5 | . . . 5 Impact 5 | . . . 5 Slashing . | . . . . Piercing . | . . . . Sneak Attacks . | . . . . Combat Hostiles . | . . . . Follow-up Attacks . | . . . . Damage Inflicted 2408 | 186 39 497 1686 Guns 317 | 186 . . 131 Cannons 1664 | . 39 497 1128 Explosions 427 | . . . 427 Melee . | . . . . Ramming . | . . . . Kinetic 2000 | 186 39 497 1278 Thermal 408 | . . . 408 Explosive . | . . . . Electromagnetic . | . . . . Impact . | . . . . Slashing . | . . . . Piercing . | . . . . Highest Corruption . | . . . . Average Corruption . | . . . . Corruption Purged . | . . . . Corruption Blocked . | . . . . Overload Shots . | . . . . Overflow Damage . | . . . . Projectiles . | . . . . Explosions . | . . . . Melee . | . . . . Knockbacks 11 | . . 4 7 Impact . | . . . . Kinetic 10 | . . 3 7 Secondary 1 | . . 1 . Self-Inflicted Damage . | . . . . Shots . | . . . . Rammed . | . . . . Targets Rammed . | . . . . Kicked . | . . . . Crushed . | . . . . Highest Temperature 294 | . 18 294 4 Average Temperature 92 | . 12 108 1 Received Heat Transfer 288 | . . 120 168 Effects 4 | . . 4 . Energy Bleed 1 | . . 1 . Interference 3 | . . 3 . Siege Activations . | . . . . Robots Corrupted . | . . . . Combat Hostiles . | . . . . Parts Fried . | . . . . Impact Corruptions . | . . . . Robots Melted . | . . . . Combat Hostiles . | . . . . Parts Melted . | . . . . Heat Transferred 754 | . . . 754 Parts Sabotaged . | . . . . Parts Stolen . | . . . . Parts Stripped . | . . . . Power Chain Reactions . | . . . . Missiles Intercepted . | . . . . Alert | -11 -10 -10 -10 ------- Run | Jun Mat Min Sub Peak Influence 90 | 15 31 90 . Initial 12 | . 9 12 . Average 27 | 4 20 31 . Maximum Alert Level . | . . . . Low Security (%) 100 | 100 100 100 . Level 1 . | . . . . Level 2 . | . . . . Level 3 . | . . . . Level 4 . | . . . . Level 5 . | . . . . High Security . | . . . . Max Security . | . . . . Squads Dispatched . | . . . . Investigation . | . . . . Extermination . | . . . . Reinforcement . | . . . . Assault . | . . . . Garrison . | . . . . Intercept . | . . . . Searches Triggered . | . . . . Construction Impeded . | . . . . Haulers Reinforced . | . . . . Active Scanning Responses . | . . . . Cargo Convoy Interrupts . | . . . . Stealth | -11 -10 -10 -10 --------- Run | Jun Mat Min Sub Distress Signals 1 | . . 1 . Communications Jammed . | . . . . Distress Signals . | . . . . Times Spotted 40 | . 2 21 17 Peak Tracking Total 13 | . 1 13 2 Tactical Retreats 2 | . . 2 . Traps | -11 -10 -10 -10 ------- Run | Jun Mat Min Sub Traps Triggered 2 | . . . 2 Indirectly . | . . . . Trap Hack Attempts . | . . . . Triggered . | . . . . Disarmed . | . . . . Reprogrammed . | . . . . Reused . | . . . . Traps Extracted . | . . . . Installed . | . . . . Triggered . | . . . . Most Traps Carried 3 | . . 3 3 Machines | -11 -10 -10 -10 ---------- Run | Jun Mat Min Sub Machines Disabled 3 | . . . 3 Max in Single Turn 2 | . . . 2 Machines Repaired . | . . . . Machines Sabotaged . | . . . . Overloaded Fab Kills . | . . . . Hacking | -11 -10 -10 -10 --------- Run | Jun Mat Min Sub Machines Accessed 2 | . . . 2 Terminals . | . . . . Fabricators . | . . . . Repair Stations . | . . . . Recycling Units . | . . . . Scanalyzers . | . . . . Garrison Access . | . . . . Total Hacks 11 | . . . 11 Successful 11 | . . . 11 Failed . | . . . . Catastrophic . | . . . . Database Lockouts . | . . . . Manual 3 | . . . 3 Terminals . | . . . . Fabricators . | . . . . Repair Stations . | . . . . Recycling Units . | . . . . Scanalyzers . | . . . . Garrison Access . | . . . . Terminal Hacks 11 | . . . 11 Record 10 | . . . 10 Derelict Proto ID Bank 1 | . . . 1 Fabricator Hacks . | . . . . Repair Station Hacks . | . . . . Recycling Unit Hacks . | . . . . Scanalyzer . | . . . . Garrison Access Hacks . | . . . . Unauthorized Hacks . | . . . . Terminals . | . . . . Fabricators . | . . . . Repair Stations . | . . . . Recycling Units . | . . . . Scanalyzers . | . . . . Garrison Access . | . . . . Data Cores Recovered . | . . . . Used . | . . . . Hacking Detections . | . . . . Full Trace Events . | . . . . Feedback Events . | . . . . Feedback Blocked . | . . . . Robot Schematics Acquired . | . . . . Robots Built . | . . . . Authchips . | . . . . Time . | . . . . Total Robot Build Rating . | . . . . Part Schematics Acquired . | . . . . Parts Built . | . . . . Authchips . | . . . . Time . | . . . . Total Part Build Rating . | . . . . Parts Repaired . | . . . . Time . | . . . . Parts Recycled . | . . . . Recycled Matter . | . . . . Retrieved Matter . | . . . . Retrieved Components . | . . . . Parts Scanalyzed . | . . . . Part Schematics Acquired . | . . . . Parts Damaged . | . . . . Bothacking | -11 -10 -10 -10 ------------ Run | Jun Mat Min Sub Used RIF Installer . | . . . . Robots Hacked . | . . . . Non-combat . | . . . . Combat . | . . . . Robot Hacks Applied . | . . . . Relay Couplers Released . | . . . . Fabnet Peak Effective % . | . . . . Robots Rewired . | . . . . Allies Hacked . | . . . . Hacks Repelled . | . . . . Allies | -11 -10 -10 -10 -------- Run | Jun Mat Min Sub Total Allies 3 | . . 3 . Largest Group 3 | . . 3 . Highest-Rated Group 73 | . . 73 . Highest-Rated Ally 31 | . . 31 . Total Orders . | . . . . Ally Attacks 7 | . . 7 . Total Damage 62 | . . 62 . Kills 3 | . . 3 . Allies Corrupted . | . . . . Allies Melted . | . . . . Intel | -11 -10 -10 -10 ------- Run | Jun Mat Min Sub Robot Analysis Total . | . . . . Derelict Logs Recovered 4 | . . 2 2 Drone Launches . | . . . . Drone Recoveries . | . . . . Exploration | -11 -10 -10 -10 ------------- Run | Jun Mat Min Sub Turns Passed 5510 | 160 133 1186 4031 Spaces Moved 2315 | 66 73 504 1672 Core 4 | 4 . . . Treads 456 | 62 73 321 . Legs . | . . . . Wheels 1855 | . . 183 1672 Hover . | . . . . Flight . | . . . . Fastest Speed 50 | 50 160 160 215 Average Speed 209 | 153 160 201 216 Slowest Speed 480 | 160 160 480 230 Overloaded Moves . | . . . . Propulsion Burnouts . | . . . . Robots Hopped . | . . . . Cave-ins Triggered . | . . . . Exploration Rate (%) 51 | 7 23 94 83 Regions Visited 3 Branch Regions 2 Pre-discovered Areas 1 | . . 1 . Known Exits Taken . | . . . . Unknown Exits Taken 3 | 1 1 1 . Scrap Searched 16 | . . 2 14 Spaces Dug 15 | . . . 15 Terrain Destroyed 81 | . . . 81 Melee . | . . . . Projectile 28 | . . . 28 AOE 53 | . . . 53 Terrain Rammed . | . . . . Walls Destroyed . | . . . . Machines Disabled . | . . . . Actions | -11 -10 -10 -10 --------- Run | Jun Mat Min Sub Total 2705 | 93 88 645 1879 Wait 88 | . . 81 7 Move 2312 | 65 72 503 1672 Hop . | . . . . Pick Up 57 | 7 5 25 20 Fast Attach 14 | 7 2 3 2 Attach 10 | . . 1 9 Detach 4 | . 1 1 2 Swap 15 | . . 2 13 Drop 37 | . 6 11 20 Fire 163 | 14 2 18 129 Melee 5 | . . . 5 Ram . | . . . . Kick . | . . . . Crush . | . . . . Escape Stasis . | . . . . Rewire . | . . . . Trap . | . . . . Miscellaneous . | . . . . Route ------- -11/Junkyard -10/Materials -10/Mines (discovered 3 exits: [*Mat x2] / *Sub) -10/Subcaves (discovered 2 exits: [*Mat] / *Mat) History --------- Turn | Location | Event 2 | -11/Junkyard | Met Revision 17 7 | -11/Junkyard | Discovered new exit (range 15) 161 | -11/Junkyard | Entered Materials 278 | -10/Materials | Discovered new exit (range 9) 294 | -10/Materials | Entered Mines 301 | -10/Mines | Build established: Mutant 382 | -10/Mines | Found a damaged Exp. Sensor Array with a note attached 386 | -10/Mines | Found Prototype Device 386 | -10/Mines | Identified Exp. Sensor Array 516 | -10/Mines | Learned location of Storage (-9) 518 | -10/Mines | Learned Materials emergency access door positions 536 | -10/Mines | Discovered new exit (range 9) 540 | -10/Mines | Received a Mining Laser from a helpful Derelict 620 | -10/Mines | Assembled infested the area 915 | -10/Mines | Found a hidden stash of uninstalled traps 1031 | -10/Mines | Joined a pair of Derelicts in attacking an 0b10 outpost 1322 | -10/Mines | Discovered new exit (range 7) 1465 | -10/Mines | Discovered new exit (range 4) 1480 | -10/Mines | Entered Subcaves 1505 | -10/Subcaves | Discovered new exit (range 7) 1508 | -10/Subcaves | Shifting Twisted Machinery released Barrage Gun 1539 | -10/Subcaves | Shifting Twisted Machinery released Riot Gun 1570 | -10/Subcaves | Visited Clippyterm 2228 | -10/Subcaves | Learned location of 2 exits from Materials 2466 | -10/Subcaves | Learned Materials emergency access door positions 2866 | -10/Subcaves | Disturbed a concealed Subdweller 2880 | -10/Subcaves | Core integrity fell below 50% 3176 | -10/Subcaves | A swath of the cavern ceiling suddenly collapsed 3188 | -10/Subcaves | Build established: Derelict-Mutant 4041 | -10/Subcaves | A swath of the cavern ceiling suddenly collapsed 4412 | -10/Subcaves | Disturbed a concealed Subdweller 4423 | -10/Subcaves | Core integrity fell below 20% 5104 | -10/Subcaves | Visited 4L-MR0's lab 5131 | -10/Subcaves | Found Meta Core 5140 | -10/Subcaves | Attached Meta Core, gained temporary slots: Propulsion, Utility, Weapon 5282 | -10/Subcaves | Discovered new exit (range 12) 5308 | -10/Subcaves | Identified exit to Materials 5423 | -10/Subcaves | Build established: Derelict-Tank 5511 | -10/Subcaves | Destroyed by J6-7KQ(R) with Subdweller Laser Last Messages --------------- 4L-MR0 mumbles to no one in particular: "Damn Subs sneaking around stealing my stuff." 4L-MR0 mumbles: "I'm surprised some of them are even willing to come in here given their fear of my usual visitors." Dropped Battle Cannon. Acquired Meta Core. 4L-MR0 mumbles: "Who knows where that last prototype ended up, probably tossed aside somewhere as if it were useless junk..." Dropped Imp. Ion Engine. Core temporarily expanded with Propulsion slot. Core temporarily expanded with Utility slot. Core temporarily expanded with Weapon slot. Acquired Imp. Ion Engine. Searching scrap... Found Battle Cannon. Found 34 Matter. Acquired 34 matter. Acquired Battle Cannon. EXIT=FOUND EXIT=IDENTIFIED: MATERIALS Map ----- +----------------------------------------------------+ | ????????# #??? #?????????????????????? | | ?????????# #???# #?????????????????????? | | ?###??????# ##??# #?????????????????????? | | ?# #??????# ##?# #?????????????????????? | | ?# ##??????# ### #?????????????????????? | | ?# ##?????# ## #?????????????????????? | | ?# #??????# #?????????????????????? | | ?# ##????## ## #?????????????????????? | | ## ###### #### #?????????????????????? | | #?# #?#### ####??????????????????? | | ### #???## #??????????????????? | | #??## #??????????????????? | | ## ##??# #??????????????????? | | ### ### ##???# ### ##?????????????????? | | #### ##?###????##?## ###???????????????? | | < ### ##?????####?### #???????????????? | | #?####??????# ## ##???????????????? | | ##????????#### #######????????????????? | | ##????????# #??????????????????????? | | ##???????## #??????????????????????? | | ####?????# #??????????????????????? | | #?????# #??????????????????????? | | #?????# ##?????????????????????? | | #### #?????##### #?????????????????????? | | #???# ##?????????# #?????????????????????? | | ?????#####??????????# @ #?????????????????????? | | ????????????????????## ##?????????????????????? | | ?????????????????????## #??????????????????????? | | ??????????????????????# #??????????????????????? | | ??????????????????????# #??????????????????????? | | ?????????????????????? %??????????????????????? | | ????????????????????? ??????????????????????? | | ????????????????????? #?????????????????????? | | ???????????????????? ### #?????????????????????? | | ??????????????????? ??? ##?????????????????????? | | ???????????????????# ???##??????????????????????? | | ??????????????????? R ???????????????????????????? | | ???????????????????R ????????????????????????????? | | ??????????????????" ????????????????????????????? | | #????????????????????????????????????????????????? | | #####????????????????????????????????????????????? | | ????????????????????????????????????????????? | | ! ????????????????????????????????????????????? | | % ###?????????????????????????????????????????? | | ] "#"""??????????????????????????????????????? | | % #""#??????????????????????????????????????? | | " ?????? ????????????????????????????????? | | & " #?????" ""??????????????????????????????? | | #?????""""#?????????????????????????????? | | "#?????#"""#?????????????????????????????? | +----------------------------------------------------+ Best States ------------- Heat Dissipation 25 Energy Generation 17 Energy Capacity 265 Matter Stores 300 Matter Capacity 300 Sight Range 16 Robot Scan Range 20 Terrain Scan Density 10 Armor Coverage 300 Evasion (%) 40 Targeting Accuracy 5 Recoil Reduction 2 Item Schematics ----------------- None Robot Schematics ------------------ None Fabricated ------------ Nothing Alien Tech Used ----------------- None Achievements -------------- None Challenges ------------ None Game ------ Seed AntimissileDroneMegatreads Manual? 0 Play Time 00:28:09 Cumulative 344.3 hours Start 2023.06.29 @ 23:28:36 End 2023.06.29 @ 23:56:24 Sessions 1 Manual Loads 0 Difficulty Rogue Special Mode None Game No. 333 Rogue 333 Adventurer 0 Explorer 0 Win Type - Total 25 Types 19/0/4/2/0/0/0/0/0 Lore% 81 Gallery% 88 Achievement% 80 Wizard Run 0 Options --------- ASCII 0 Keyboard 1 Movement Numpad Keybinds 0 Fullscreen 1 Font 18/SmallcapsGlow Map View 76x50 Tactical HUD 1 Map Filters NONE Filters NONE Steam 1 RUN: b55520e4-a90f-4fc7-ac4d-e5c4f28a5e60